Organisation Name,Department where exp. Incurred,Service Category Label,Supplier (Beneficiary),Purpose of Expenditure,Procurement (Merchant) Category,Purchase Date,Settlement Date,Transaction Number,Net Amount (�)
Stockport MBC,Services to People,Childrens & Educational Services,SAINSBURYS S/MKTS,Catering Supplies,Catering Food & Beverages ,14.06.2022,16.07.2022,GPC06220000001,5.80
Stockport MBC,Corporate and Support Services,Central Services to the public,HELLIDON LAKES,Travelling Expenses,Human Resources Travel & Subsistence ,23.06.2022,16.07.2022,GPC06220000002,154.00
Stockport MBC,Corporate and Support Services,Central Services to the public,HELLIDON LAKES,Travelling Expenses,Human Resources Travel & Subsistence ,23.06.2022,16.07.2022,GPC06220000003,154.00
Stockport MBC,Corporate and Support Services,Central Support Costs,FACEBK  TA3APEXLG2,Office Expenses,Facilities & Management Services  ,30.06.2022,16.07.2022,GPC06220000004,156.68
Stockport MBC,Corporate and Support Services,Central Support Costs,"TYPEFORM, S.L.",Furniture and Equipment,Environmental Services Technical Equipment ,28.06.2022,16.07.2022,GPC06220000005,458.33
Stockport MBC,Corporate and Support Services,Central Support Costs,APPLE.COM/BILL,Information and Communications Technology,Information Communication Technology  ,26.06.2022,16.07.2022,GPC06220000006,5.83
Stockport MBC,Corporate and Support Services,Central Support Costs,FACEBK  VC22NFKLG2,Office Expenses,Facilities & Management Services  ,22.06.2022,16.07.2022,GPC06220000007,700.00
Stockport MBC,Corporate and Support Services,Central Support Costs,GOOGLE ADS8179771860,Office Expenses,Facilities & Management Services  ,19.06.2022,16.07.2022,GPC06220000008,500.00
Stockport MBC,Corporate and Support Services,Central Support Costs,SITEGROUND HOSTING,Information and Communications Technology,Information Communication Technology  ,10.06.2022,16.07.2022,GPC06220000009,20.00
Stockport MBC,Corporate and Support Services,Central Support Costs,GOOGLE ADS8179771860,Office Expenses,Facilities & Management Services  ,10.06.2022,16.07.2022,GPC06220000010,500.00
Stockport MBC,Corporate and Support Services,Central Support Costs,GOOGLE ADS8179771860,Office Expenses,Facilities & Management Services  ,02.06.2022,16.07.2022,GPC06220000011,547.17
Stockport MBC,Services to Place,Cultural & Related Services,WOODSHAPES LTD,Furniture and Equipment,Furniture & Soft Furnishings  ,23.06.2022,16.07.2022,GPC06220000012,95.05
Stockport MBC,Services to Place,Cultural & Related Services,HACHETTE UK DISTRIBUTI,Library Equipment,Education Library Books ,17.06.2022,16.07.2022,GPC06220000013,144.82
Stockport MBC,Services to Place,Cultural & Related Services,ROYAL MAIL GROUP LTD,Office Expenses,Mail Services�  ,04.06.2022,16.07.2022,GPC06220000014,2.85
Stockport MBC,Services to Place,Cultural & Related Services,EB  GEM CONFERENCE 202,Staff Training,Human Resources  ,19.06.2022,16.07.2022,GPC06220000015,53.42
Stockport MBC,Services to People,Childrens & Educational Services,Q PARK DEANSGATE NORTH,Travelling Expenses,Human Resources Travel & Subsistence ,30.06.2022,16.07.2022,GPC06220000016,13.17
Stockport MBC,Services to People,Childrens & Educational Services,KNIGHTS CORPORATE WORK,Clothing Uniforns and Laundry,Clothing  ,28.06.2022,16.07.2022,GPC06220000017,162.00
Stockport MBC,Services to People,Childrens & Educational Services,KARCHER CENTER MCC,Cleaning,Cleaning & Janitorial  ,24.06.2022,16.07.2022,GPC06220000018,122.78
Stockport MBC,Services to People,Childrens & Educational Services,GEAR4MUSIC,Furniture and Equipment,Environmental Services Technical Equipment ,23.06.2022,16.07.2022,GPC06220000019,221.25
Stockport MBC,Services to People,Childrens & Educational Services,PRINTMYTICKETS.CO.,Furniture and Equipment,Furniture & Soft Furnishings  ,20.06.2022,16.07.2022,GPC06220000020,32.91
Stockport MBC,Services to People,Childrens & Educational Services,GEAR4MUSIC,Furniture and Equipment,Furniture & Soft Furnishings  ,16.06.2022,16.07.2022,GPC06220000021,87.38
Stockport MBC,Services to People,Childrens & Educational Services,P&L INDUSTRIAL EQUIPME,Furniture and Equipment,Environmental Services Technical Equipment ,09.06.2022,16.07.2022,GPC06220000022,59.36
Stockport MBC,Services to People,Childrens & Educational Services,AMZNMKTPLACE AMAZON.CO,Office Expenses,Facilities & Management Services  ,30.06.2022,16.07.2022,GPC06220000023,45.76
Stockport MBC,Services to People,Childrens & Educational Services,AMZNMKTPLACE AMAZON.CO,Office Expenses,Facilities & Management Services  ,30.06.2022,16.07.2022,GPC06220000024,54.99
Stockport MBC,Services to People,Childrens & Educational Services,FACEBK 9PVGTE3SK2,Office Expenses,Facilities & Management Services  ,27.06.2022,16.07.2022,GPC06220000025,700.22
Stockport MBC,Services to People,Childrens & Educational Services,TRAINLINE,Travelling Expenses,Human Resources Travel & Subsistence ,24.06.2022,16.07.2022,GPC06220000026,117.50
Stockport MBC,Services to People,Childrens & Educational Services,SQ  GO BOUNCY HIRE LIM,Publicity and Promotion,Arts & Leisure Services  ,08.06.2022,16.07.2022,GPC06220000027,125.00
Stockport MBC,Services to People,Childrens & Educational Services,AMZNMKTPLACE,Publicity and Promotion,Arts & Leisure Services  ,04.06.2022,16.07.2022,GPC06220000028,26.95
Stockport MBC,Corporate and Support Services,Corporate & Democratic Core,IZ  PARAMJIT SINGH,Travelling Expenses,Human Resources Travel & Subsistence ,15.06.2022,16.07.2022,GPC06220000029,16.00
Stockport MBC,Corporate and Support Services,Corporate & Democratic Core,SUMUP   TAXI,Travelling Expenses,Human Resources Travel & Subsistence ,15.06.2022,16.07.2022,GPC06220000030,17.00
Stockport MBC,Services to People,Childrens & Educational Services,AMZNMKTPLACE AMAZON.CO,Furniture and Equipment,Furniture & Soft Furnishings  ,28.06.2022,16.07.2022,GPC06220000031,13.83
Stockport MBC,Services to People,Childrens & Educational Services,ZOOM.US 888-799-9666,Fees and Charges,"Works - Construction, Repair & Maintenance  ",26.06.2022,16.07.2022,GPC06220000032,143.88
Stockport MBC,Services to People,Childrens & Educational Services,TOOLS TO GROW INC,Fees and Charges,"Works - Construction, Repair & Maintenance  ",23.06.2022,16.07.2022,GPC06220000033,49.10
Stockport MBC,Services to People,Childrens & Educational Services,AMAZON PRIME 2C3XL5HP4,Furniture and Equipment,Furniture & Soft Furnishings  ,13.06.2022,16.07.2022,GPC06220000034,7.99
Stockport MBC,Services to People,Childrens & Educational Services,WM MORRISONS STORE,Catering Supplies,Catering Food & Beverages ,28.06.2022,16.07.2022,GPC06220000035,40.34
Stockport MBC,Services to People,Childrens & Educational Services,B & Q 1279,Furniture and Equipment,Environmental Services Technical Equipment ,28.06.2022,16.07.2022,GPC06220000036,49.00
Stockport MBC,Services to People,Childrens & Educational Services,WWW.ICO.ORG.UK,Fees and Charges,"Works - Construction, Repair & Maintenance  ",28.06.2022,16.07.2022,GPC06220000037,40.00
Stockport MBC,Services to People,Childrens & Educational Services,THE BOULEVARD DELI CAF,Catering Supplies,Catering Food & Beverages ,27.06.2022,16.07.2022,GPC06220000038,37.80
Stockport MBC,Services to People,Childrens & Educational Services,HSQE LTD,Staff Training,Human Resources  ,22.06.2022,16.07.2022,GPC06220000039,18.00
Stockport MBC,Services to People,Childrens & Educational Services,AMZNMKTPLACE,Furniture and Equipment,Environmental Services Technical Equipment ,22.06.2022,16.07.2022,GPC06220000040,25.58
Stockport MBC,Services to People,Childrens & Educational Services,WM MORRISONS STORE,Office Expenses,Mail Services�  ,20.06.2022,16.07.2022,GPC06220000041,16.32
Stockport MBC,Services to People,Childrens & Educational Services,WM MORRISONS STORE,Catering Supplies,Catering Food & Beverages ,20.06.2022,16.07.2022,GPC06220000042,36.72
Stockport MBC,Services to People,Childrens & Educational Services,WM MORRISONS STORE,Catering Supplies,Catering Food & Beverages ,17.06.2022,16.07.2022,GPC06220000043,12.55
Stockport MBC,Services to People,Childrens & Educational Services,WM MORRISONS STORE,Catering Supplies,Catering Food & Beverages ,16.06.2022,16.07.2022,GPC06220000044,16.45
Stockport MBC,Services to People,Childrens & Educational Services,WM MORRISONS STORE,Catering Supplies,Catering Food & Beverages ,16.06.2022,16.07.2022,GPC06220000045,4.08
Stockport MBC,Services to People,Childrens & Educational Services,TAHDAH VERIFIED,Staff Training,Human Resources  ,16.06.2022,16.07.2022,GPC06220000046,49.00
Stockport MBC,Services to People,Childrens & Educational Services,WM MORRISONS STORE,Catering Supplies,Catering Food & Beverages ,15.06.2022,16.07.2022,GPC06220000047,1.98
Stockport MBC,Services to People,Childrens & Educational Services,WM MORRISONS STORE,Catering Supplies,Catering Food & Beverages ,15.06.2022,16.07.2022,GPC06220000048,12.90
Stockport MBC,Services to People,Childrens & Educational Services,IKEA LTD SHOP ONLINE,Furniture and Equipment,Environmental Services Technical Equipment ,15.06.2022,16.07.2022,GPC06220000049,169.00
Stockport MBC,Services to People,Childrens & Educational Services,WM MORRISONS STORE,Catering Supplies,Catering Food & Beverages ,14.06.2022,16.07.2022,GPC06220000050,13.45
Stockport MBC,Services to People,Childrens & Educational Services,WM MORRISONS STORE,Catering Supplies,Catering Food & Beverages ,14.06.2022,16.07.2022,GPC06220000051,1.50
Stockport MBC,Services to People,Childrens & Educational Services,AWARD SCHEME LTD,Furniture and Equipment,Environmental Services Technical Equipment ,14.06.2022,16.07.2022,GPC06220000052,12.00
Stockport MBC,Services to People,Childrens & Educational Services,WM MORRISONS STORE,Catering Supplies,Catering Food & Beverages ,13.06.2022,16.07.2022,GPC06220000053,21.14
Stockport MBC,Services to People,Childrens & Educational Services,WM MORRISONS STORE,Furniture and Equipment,Environmental Services Technical Equipment ,13.06.2022,16.07.2022,GPC06220000054,25.20
Stockport MBC,Services to People,Childrens & Educational Services,PAYPAL  3D 360 LTD,Furniture and Equipment,Environmental Services Technical Equipment ,10.06.2022,16.07.2022,GPC06220000055,37.99
Stockport MBC,Services to People,Childrens & Educational Services,WM MORRISONS STORE,Catering Supplies,Catering Food & Beverages ,10.06.2022,16.07.2022,GPC06220000056,13.95
Stockport MBC,Services to People,Childrens & Educational Services,WM MORRISONS STORE,Catering Supplies,Catering Food & Beverages ,09.06.2022,16.07.2022,GPC06220000057,16.15
Stockport MBC,Services to People,Childrens & Educational Services,WM MORRISONS STORE,Catering Supplies,Catering Food & Beverages ,08.06.2022,16.07.2022,GPC06220000058,14.83
Stockport MBC,Services to People,Childrens & Educational Services,WM MORRISONS STORE,Catering Supplies,Catering Food & Beverages ,07.06.2022,16.07.2022,GPC06220000059,9.10
Stockport MBC,Services to People,Childrens & Educational Services,WM MORRISONS STORE,Catering Supplies,Catering Food & Beverages ,07.06.2022,16.07.2022,GPC06220000060,43.40
Stockport MBC,Services to People,Childrens & Educational Services,WM MORRISONS STORE,Catering Supplies,Catering Food & Beverages ,06.06.2022,16.07.2022,GPC06220000061,19.80
Stockport MBC,Corporate and Support Services,Corporate & Democratic Core,AMZNMKTPLACE AMAZON.CO,Information and Communications Technology,Information Communication Technology  ,17.06.2022,16.07.2022,GPC06220000062,18.79
Stockport MBC,Corporate and Support Services,Corporate & Democratic Core,AMZNMKTPLACE AMAZON.CO,Information and Communications Technology,Information Communication Technology  ,16.06.2022,16.07.2022,GPC06220000063,18.79
Stockport MBC,Corporate and Support Services,Corporate & Democratic Core,AMZNMKTPLACE AMAZON.CO,Information and Communications Technology,Information Communication Technology  ,16.06.2022,16.07.2022,GPC06220000064,18.79
Stockport MBC,Corporate and Support Services,Corporate & Democratic Core,AMZNMKTPLACE,Information and Communications Technology,Information Communication Technology  ,16.06.2022,16.07.2022,GPC06220000065,18.79
Stockport MBC,Corporate and Support Services,Corporate & Democratic Core,ST. GEORGE HOTEL,Expenses and Allowances,Human Resources Training & Conferences ,07.06.2022,16.07.2022,GPC06220000066,183.40
Stockport MBC,Corporate and Support Services,Corporate & Democratic Core,ST. GEORGE HOTEL,Expenses and Allowances,Human Resources Training & Conferences ,07.06.2022,16.07.2022,GPC06220000067,201.40
Stockport MBC,Corporate and Support Services,Corporate & Democratic Core,PREMIER INN 44534755,Expenses and Allowances,Human Resources Training & Conferences ,07.06.2022,16.07.2022,GPC06220000068,141.30
Stockport MBC,Services to People,Adult Social Care,ASDA GROCERIES ONLINE,Catering Supplies,Catering Food & Beverages ,30.06.2022,16.07.2022,GPC06220000069,2.48
Stockport MBC,Services to People,Adult Social Care,ASDA GROCERIES ONLINE,Catering Supplies,Catering Food & Beverages ,30.06.2022,16.07.2022,GPC06220000070,95.30
Stockport MBC,Services to People,Adult Social Care,ASDA GROCERIES ONLINE,Catering Supplies,Catering Food & Beverages ,23.06.2022,16.07.2022,GPC06220000071,117.13
Stockport MBC,Services to People,Adult Social Care,ASDA GROCERIES ONLINE,Catering Supplies,Catering Food & Beverages ,23.06.2022,16.07.2022,GPC06220000072,-0.33
Stockport MBC,Services to People,Adult Social Care,ASDA GROCERIES ONLINE,Catering Supplies,Catering Food & Beverages ,16.06.2022,16.07.2022,GPC06220000073,111.54
Stockport MBC,Services to People,Adult Social Care,ASDA GROCERIES ONLINE,Catering Supplies,Catering Food & Beverages ,08.06.2022,16.07.2022,GPC06220000074,5.33
Stockport MBC,Services to People,Adult Social Care,ASDA GROCERIES ONLINE,Catering Supplies,Catering Food & Beverages ,08.06.2022,16.07.2022,GPC06220000075,91.13
Stockport MBC,Corporate and Support Services,Central Support Costs,FIND A WILL,Legal Fees,Legal Services  ,29.06.2022,16.07.2022,GPC06220000076,1.50
Stockport MBC,Corporate and Support Services,Corporate & Democratic Core,DOUBLETREE BY HILTON L,Expenses and Allowances,Human Resources Training & Conferences ,24.06.2022,16.07.2022,GPC06220000077,"1,008.00"
Stockport MBC,Corporate and Support Services,Corporate & Democratic Core,DOUBLETREE BY HILTON L,Expenses and Allowances,Human Resources Training & Conferences ,24.06.2022,16.07.2022,GPC06220000078,838.95
Stockport MBC,Services to Place,Central Support Costs,AMZNMKTPLACE,Office Expenses,Stationery    ,20.06.2022,16.07.2022,GPC06220000079,6.99
Stockport MBC,Services to Place,Central Support Costs,AMZNMKTPLACE AMAZON.CO,Office Expenses,Stationery    ,18.06.2022,16.07.2022,GPC06220000080,6.99
Stockport MBC,Services to Place,Central Support Costs,AMZNMKTPLACE,Office Expenses,Stationery    ,17.06.2022,16.07.2022,GPC06220000081,45.98
Stockport MBC,Corporate and Support Services,Central Support Costs,PADDLE.NET  SNAPWIDGET,Information and Communications Technology,Information Communication Technology  ,16.06.2022,16.07.2022,GPC06220000082,56.94
Stockport MBC,Corporate and Support Services,Central Support Costs,CANVA  03440-9381902,Information and Communications Technology,Information Communication Technology  ,03.06.2022,16.07.2022,GPC06220000083,99.99
Stockport MBC,Services to People,Adult Social Care,ALDI 84 773,Catering Supplies,Catering Food & Beverages ,08.06.2022,16.07.2022,GPC06220000084,30.60
Stockport MBC,Corporate and Support Services,Cultural & Related Services,SAINSBURY'S S/MKTS,Catering Supplies,Catering Food & Beverages ,09.06.2022,16.07.2022,GPC06220000085,4.00
Stockport MBC,Corporate and Support Services,Cultural & Related Services,SAINSBURY'S S/MKTS,Catering Supplies,Catering Food & Beverages ,08.06.2022,16.07.2022,GPC06220000086,1.92
Stockport MBC,Services to People,Childrens & Educational Services,AMZNMKTPLACE,Furniture and Equipment,Environmental Services Technical Equipment ,15.06.2022,16.07.2022,GPC06220000087,69.55
Stockport MBC,Services to People,Childrens & Educational Services,AMZNMKTPLACE,Furniture and Equipment,Environmental Services Technical Equipment ,15.06.2022,16.07.2022,GPC06220000088,69.55
Stockport MBC,Services to People,Childrens & Educational Services,AMZNMKTPLACE,Furniture and Equipment,Environmental Services Technical Equipment ,15.06.2022,16.07.2022,GPC06220000089,37.84
Stockport MBC,Services to People,Childrens & Educational Services,AMZNMKTPLACE AMAZON.CO,Furniture and Equipment,Environmental Services Technical Equipment ,14.06.2022,16.07.2022,GPC06220000090,50.90
Stockport MBC,Services to People,Childrens & Educational Services,AMZNMKTPLACE AMAZON.CO,Furniture and Equipment,Environmental Services Technical Equipment ,14.06.2022,16.07.2022,GPC06220000091,62.31
Stockport MBC,Services to People,Childrens & Educational Services,AMZNMKTPLACE AMAZON.CO,Furniture and Equipment,Environmental Services Technical Equipment ,14.06.2022,16.07.2022,GPC06220000092,98.92
Stockport MBC,Services to People,Childrens & Educational Services,AMZNMKTPLACE,Furniture and Equipment,Environmental Services Technical Equipment ,14.06.2022,16.07.2022,GPC06220000093,75.97
Stockport MBC,Services to People,Childrens & Educational Services,AMZNMKTPLACE,Furniture and Equipment,Environmental Services Technical Equipment ,14.06.2022,16.07.2022,GPC06220000094,50.90
Stockport MBC,Services to People,Childrens & Educational Services,AMZNMKTPLACE,Furniture and Equipment,Environmental Services Technical Equipment ,14.06.2022,16.07.2022,GPC06220000095,47.81
Stockport MBC,Services to People,Childrens & Educational Services,AMZNMKTPLACE,Furniture and Equipment,Environmental Services Technical Equipment ,14.06.2022,16.07.2022,GPC06220000096,57.51
Stockport MBC,Services to People,Childrens & Educational Services,AMZNMKTPLACE,Furniture and Equipment,Environmental Services Technical Equipment ,13.06.2022,16.07.2022,GPC06220000097,84.73
Stockport MBC,Services to People,Childrens & Educational Services,TVLICENSING.CO.UK,Fees and Charges,"Works - Construction, Repair & Maintenance  ",09.06.2022,16.07.2022,GPC06220000098,159.00
Stockport MBC,Services to People,Childrens & Educational Services,LIFE LEISURE BRINNINGT,Fees and Charges,Education  ,09.06.2022,16.07.2022,GPC06220000099,36.40
Stockport MBC,Corporate and Support Services,Cultural & Related Services,AMZNMKTPLACE,Furniture and Equipment,Environmental Services Technical Equipment ,20.06.2022,16.07.2022,GPC06220000100,49.95
Stockport MBC,Services to People,Adult Social Care,TESCO STORE 2629,Furniture and Equipment,Furniture & Soft Furnishings  ,19.06.2022,16.07.2022,GPC06220000101,4.00
Stockport MBC,Services to People,Adult Social Care,ALDI 84 773,Catering Supplies,Catering Food & Beverages ,10.06.2022,16.07.2022,GPC06220000102,53.94
Stockport MBC,Services to People,Childrens & Educational Services,AMZNMKTPLACE,Office Expenses,Stationery    ,24.06.2022,16.07.2022,GPC06220000103,69.77
Stockport MBC,Services to People,Childrens & Educational Services,AMAZON PRIME 278V92CN4,Fees and Charges,Financial Services  ,18.06.2022,16.07.2022,GPC06220000104,7.99
Stockport MBC,Services to People,Childrens & Educational Services,AMZNMKTPLACE AMAZON.CO,Office Expenses,Stationery    ,16.06.2022,16.07.2022,GPC06220000105,140.91
Stockport MBC,Services to People,Childrens & Educational Services,AMZNMKTPLACE AMAZON.CO,Furniture and Equipment,Environmental Services Technical Equipment ,29.06.2022,16.07.2022,GPC06220000106,21.65
Stockport MBC,Services to People,Childrens & Educational Services,HAMILTON EDUCATION,Furniture and Equipment,Environmental Services Technical Equipment ,17.06.2022,16.07.2022,GPC06220000107,135.00
Stockport MBC,Services to People,Childrens & Educational Services,AMZNMKTPLACE AMAZON.CO,Furniture and Equipment,Environmental Services Technical Equipment ,16.06.2022,16.07.2022,GPC06220000108,83.30
Stockport MBC,Services to People,Childrens & Educational Services,AMAZON.CO.UK 2C4C63IF4,Furniture and Equipment,Environmental Services Technical Equipment ,16.06.2022,16.07.2022,GPC06220000109,63.46
Stockport MBC,Services to People,Childrens & Educational Services,AMAZON.CO.UK 2C0CK3IH4,Furniture and Equipment,Environmental Services Technical Equipment ,16.06.2022,16.07.2022,GPC06220000110,66.68
Stockport MBC,Services to People,Childrens & Educational Services,AMZNMKTPLACE,Furniture and Equipment,Environmental Services Technical Equipment ,16.06.2022,16.07.2022,GPC06220000111,35.98
Stockport MBC,Services to People,Childrens & Educational Services,AMZNMKTPLACE,Furniture and Equipment,Environmental Services Technical Equipment ,16.06.2022,16.07.2022,GPC06220000112,70.44
Stockport MBC,Services to People,Childrens & Educational Services,AMAZON.CO.UK 2C88D1DL4,Furniture and Equipment,Environmental Services Technical Equipment ,14.06.2022,16.07.2022,GPC06220000113,42.26
Stockport MBC,Services to People,Childrens & Educational Services,AMZNMKTPLACE,Furniture and Equipment,Environmental Services Technical Equipment ,14.06.2022,16.07.2022,GPC06220000114,74.10
Stockport MBC,Services to People,Childrens & Educational Services,AMZNMKTPLACE,Furniture and Equipment,Environmental Services Technical Equipment ,14.06.2022,16.07.2022,GPC06220000115,6.98
Stockport MBC,Services to People,Childrens & Educational Services,AMAZON.CO.UK 2C4893DW4,Furniture and Equipment,Environmental Services Technical Equipment ,14.06.2022,16.07.2022,GPC06220000116,75.10
Stockport MBC,Services to People,Childrens & Educational Services,PAYPAL  INCENTIVEPL,Furniture and Equipment,Environmental Services Technical Equipment ,09.06.2022,16.07.2022,GPC06220000117,172.94
Stockport MBC,Services to People,Adult Social Care,UBER    TRIP,Travelling Expenses,Human Resources Travel & Subsistence ,18.06.2022,16.07.2022,GPC06220000118,9.57
Stockport MBC,Services to People,Adult Social Care,UBER    TRIP,Travelling Expenses,Human Resources Travel & Subsistence ,18.06.2022,16.07.2022,GPC06220000119,9.78
Stockport MBC,Services to People,Adult Social Care,UBER    TRIP,Travelling Expenses,Human Resources Travel & Subsistence ,18.06.2022,16.07.2022,GPC06220000120,7.52
Stockport MBC,Services to People,Adult Social Care,UBER    TRIP,Travelling Expenses,Human Resources Travel & Subsistence ,18.06.2022,16.07.2022,GPC06220000121,4.06
Stockport MBC,Services to People,Adult Social Care,UBER    TRIP,Travelling Expenses,Human Resources Travel & Subsistence ,18.06.2022,16.07.2022,GPC06220000122,4.18
Stockport MBC,Services to People,Adult Social Care,UBER    TRIP,Travelling Expenses,Human Resources Travel & Subsistence ,17.06.2022,16.07.2022,GPC06220000123,4.18
Stockport MBC,Services to People,Adult Social Care,UBER    TRIP,Travelling Expenses,Human Resources Travel & Subsistence ,17.06.2022,16.07.2022,GPC06220000124,9.19
Stockport MBC,Services to People,Adult Social Care,UBER    TRIP,Travelling Expenses,Human Resources Travel & Subsistence ,15.06.2022,16.07.2022,GPC06220000125,4.57
Stockport MBC,Services to People,Adult Social Care,UBER    TRIP,Travelling Expenses,Human Resources Travel & Subsistence ,15.06.2022,16.07.2022,GPC06220000126,7.12
Stockport MBC,Services to People,Adult Social Care,UBER    TRIP,Travelling Expenses,Human Resources Travel & Subsistence ,11.06.2022,16.07.2022,GPC06220000127,6.15
Stockport MBC,Services to People,Adult Social Care,UBER    EATS,Travelling Expenses,Human Resources Travel & Subsistence ,10.06.2022,16.07.2022,GPC06220000128,21.38
Stockport MBC,Services to People,Childrens & Educational Services,AMZNMKTPLACE,Furniture and Equipment,Furniture & Soft Furnishings  ,30.06.2022,16.07.2022,GPC06220000129,7.34
Stockport MBC,Services to People,Childrens & Educational Services,TESCO STORES 3378,Catering Supplies,Catering Food & Beverages ,29.06.2022,16.07.2022,GPC06220000130,10.00
Stockport MBC,Services to People,Childrens & Educational Services,MARKS&SPENCER PLC SF,Furniture and Equipment,Furniture & Soft Furnishings  ,29.06.2022,16.07.2022,GPC06220000131,4.50
Stockport MBC,Services to People,Childrens & Educational Services,ASDA STORES 4840,Catering Supplies,Catering Food & Beverages ,29.06.2022,16.07.2022,GPC06220000132,8.40
Stockport MBC,Services to People,Childrens & Educational Services,ASDA STORES 4840,Catering Supplies,Catering Food & Beverages ,27.06.2022,16.07.2022,GPC06220000133,63.92
Stockport MBC,Services to People,Childrens & Educational Services,TROPHYSTORE.CO.UK LIMI,Furniture and Equipment,Furniture & Soft Furnishings  ,23.06.2022,16.07.2022,GPC06220000134,12.00
Stockport MBC,Services to People,Childrens & Educational Services,TROPHYSTORE.CO.UK LIMI,Furniture and Equipment,Furniture & Soft Furnishings  ,22.06.2022,16.07.2022,GPC06220000135,89.46
Stockport MBC,Services to People,Childrens & Educational Services,WICKES STOCKPORT,Repairs and Maintenance,"Works - Construction, Repair & Maintenance  ",20.06.2022,16.07.2022,GPC06220000136,15.00
Stockport MBC,Services to People,Childrens & Educational Services,ASDA STORES 4840,Catering Supplies,Catering Food & Beverages ,20.06.2022,16.07.2022,GPC06220000137,55.98
Stockport MBC,Services to People,Childrens & Educational Services,ASDA STORES 4840,Furniture and Equipment,Furniture & Soft Furnishings  ,20.06.2022,16.07.2022,GPC06220000138,16.80
Stockport MBC,Services to People,Childrens & Educational Services,IKEA LTD SHOP ONLINE,Furniture and Equipment,Furniture & Soft Furnishings  ,16.06.2022,16.07.2022,GPC06220000139,17.00
Stockport MBC,Services to People,Childrens & Educational Services,ASDA STORES 4840,Cleaning,Cleaning & Janitorial  ,14.06.2022,16.07.2022,GPC06220000140,3.99
Stockport MBC,Services to People,Childrens & Educational Services,AMZNMKTPLACE,Furniture and Equipment,Furniture & Soft Furnishings  ,08.06.2022,16.07.2022,GPC06220000141,17.99
Stockport MBC,Services to People,Childrens & Educational Services,ASDA STORES 4840,Catering Supplies,Catering Food & Beverages ,06.06.2022,16.07.2022,GPC06220000142,1.35
Stockport MBC,Services to People,Adult Social Care,IKEA LTD 186 MANCHESTE,Furniture and Equipment,Furniture & Soft Furnishings  ,23.06.2022,16.07.2022,GPC06220000143,404.59
Stockport MBC,Corporate and Support Services,Corporate & Democratic Core,FINANCIAL TIMES,Library Equipment,Education Library Books ,19.06.2022,16.07.2022,GPC06220000144,499.00
Stockport MBC,Services to Place,Childrens & Educational Services,PSHE ASSOCIATION,Staff Training,Human Resources  ,21.06.2022,16.07.2022,GPC06220000145,95.00
Stockport MBC,Services to Place,Childrens & Educational Services,PSHE ASSOCIATION,Professional Fees,Consultancy   ,08.06.2022,16.07.2022,GPC06220000146,125.00
Stockport MBC,Services to Place,Childrens & Educational Services,GOVNET EVENTS,Staff Training,Human Resources  ,08.06.2022,16.07.2022,GPC06220000147,390.00
Stockport MBC,Services to People,Childrens & Educational Services,B & Q 1279,Repairs and Maintenance,"Works - Construction, Repair & Maintenance  ",24.06.2022,16.07.2022,GPC06220000148,-15.00
Stockport MBC,Services to People,Childrens & Educational Services,ALDI 13 773,Furniture and Equipment,Furniture & Soft Furnishings  ,24.06.2022,16.07.2022,GPC06220000149,14.99
Stockport MBC,Services to People,Childrens & Educational Services,B & Q 1279,Repairs and Maintenance,"Works - Construction, Repair & Maintenance  ",21.06.2022,16.07.2022,GPC06220000150,55.91
Stockport MBC,Services to People,Childrens & Educational Services,CITY LOCK AND SAFE,Repairs and Maintenance,"Works - Construction, Repair & Maintenance  ",21.06.2022,16.07.2022,GPC06220000151,6.43
Stockport MBC,Services to People,Childrens & Educational Services,AMZNMKTPLACE,Furniture and Equipment,Furniture & Soft Furnishings  ,20.06.2022,16.07.2022,GPC06220000152,73.55
Stockport MBC,Services to People,Childrens & Educational Services,B&M 570 - CLARKWAYHYDE,Furniture and Equipment,Furniture & Soft Furnishings  ,18.06.2022,16.07.2022,GPC06220000153,34.77
Stockport MBC,Services to People,Childrens & Educational Services,JYSK LTD,Furniture and Equipment,Furniture & Soft Furnishings  ,17.06.2022,16.07.2022,GPC06220000154,10.99
Stockport MBC,Services to People,Childrens & Educational Services,ASDA STORES 4840,Catering Supplies,Catering Food & Beverages ,14.06.2022,16.07.2022,GPC06220000155,62.31
Stockport MBC,Services to People,Childrens & Educational Services,ASDA STORES 4840,Cleaning,Cleaning & Janitorial  ,08.06.2022,16.07.2022,GPC06220000156,68.35
Stockport MBC,Services to People,Childrens & Educational Services,ASDA STORES 4840,Catering Supplies,Catering Food & Beverages ,06.06.2022,16.07.2022,GPC06220000157,75.75
Stockport MBC,Services to People,Childrens & Educational Services,TRAINLINE.COM,Travelling Expenses,Human Resources Travel & Subsistence ,28.06.2022,16.07.2022,GPC06220000158,123.01
Stockport MBC,Services to People,Childrens & Educational Services,THETRAINLINE.COM,Travelling Expenses,Human Resources Travel & Subsistence ,28.06.2022,16.07.2022,GPC06220000159,107.23
Stockport MBC,Services to People,Childrens & Educational Services,NATIONAL EXPRESS LIMIT,Travelling Expenses,Human Resources Travel & Subsistence ,23.06.2022,16.07.2022,GPC06220000160,22.00
Stockport MBC,Services to People,Childrens & Educational Services,ARGOS LTD,Furniture and Equipment,Environmental Services Technical Equipment ,22.06.2022,16.07.2022,GPC06220000161,67.95
Stockport MBC,Services to People,Childrens & Educational Services,NATIONAL EXPRESS LIMIT,Travelling Expenses,Human Resources Travel & Subsistence ,22.06.2022,16.07.2022,GPC06220000162,36.60
Stockport MBC,Services to People,Childrens & Educational Services,AMZNMKTPLACE,Office Expenses,Stationery    ,22.06.2022,16.07.2022,GPC06220000163,125.83
Stockport MBC,Services to People,Childrens & Educational Services,THETRAINLINE.COM,Travelling Expenses,Human Resources Travel & Subsistence ,22.06.2022,16.07.2022,GPC06220000164,-103.40
Stockport MBC,Services to People,Childrens & Educational Services,ASDA GEORGE COM LEEDS,Clothing Uniforns and Laundry,Clothing  ,21.06.2022,16.07.2022,GPC06220000165,60.95
Stockport MBC,Services to People,Childrens & Educational Services,TRAINLINE.COM,Travelling Expenses,Human Resources Travel & Subsistence ,20.06.2022,16.07.2022,GPC06220000166,60.89
Stockport MBC,Services to People,Childrens & Educational Services,HEALD GREEN PHARMACY,Furniture and Equipment,Furniture & Soft Furnishings  ,17.06.2022,16.07.2022,GPC06220000167,16.00
Stockport MBC,Services to People,Childrens & Educational Services,THETRAINLINE.COM,Travelling Expenses,Human Resources Travel & Subsistence ,17.06.2022,16.07.2022,GPC06220000168,107.23
Stockport MBC,Services to People,Childrens & Educational Services,ARGOS LTD,Furniture and Equipment,Environmental Services Technical Equipment ,15.06.2022,16.07.2022,GPC06220000169,186.95
Stockport MBC,Services to People,Childrens & Educational Services,AMZNMKTPLACE AMAZON.CO,Furniture and Equipment,Environmental Services Technical Equipment ,14.06.2022,16.07.2022,GPC06220000170,132.95
Stockport MBC,Services to People,Childrens & Educational Services,HEALD GREEN PHARMACY,Furniture and Equipment,Furniture & Soft Furnishings  ,13.06.2022,16.07.2022,GPC06220000171,16.00
Stockport MBC,Services to People,Childrens & Educational Services,HEALD GREEN PHARMACY,Furniture and Equipment,Furniture & Soft Furnishings  ,13.06.2022,16.07.2022,GPC06220000172,436.78
Stockport MBC,Services to People,Childrens & Educational Services,TRAINLINE.COM,Travelling Expenses,Human Resources Travel & Subsistence ,10.06.2022,16.07.2022,GPC06220000173,98.89
Stockport MBC,Services to People,Childrens & Educational Services,PREMIER INN44521425,Care Payments,Social Community Care Supplies & Services  ,09.06.2022,16.07.2022,GPC06220000174,133.00
Stockport MBC,Services to People,Childrens & Educational Services,WORLD AIR FARES,Travelling Expenses,Human Resources Travel & Subsistence ,08.06.2022,16.07.2022,GPC06220000175,"1,852.00"
Stockport MBC,Services to People,Childrens & Educational Services,HOTEL AT BOOKING.COM,Care Payments,Social Community Care Supplies & Services  ,08.06.2022,16.07.2022,GPC06220000176,132.96
Stockport MBC,Services to People,Childrens & Educational Services,CENTRAL EVENT HIRE LTD,Furniture and Equipment,Environmental Services Technical Equipment ,08.06.2022,16.07.2022,GPC06220000177,60.00
Stockport MBC,Services to People,Childrens & Educational Services,AO RETAIL LIMITED,Furniture and Equipment,Environmental Services Technical Equipment ,07.06.2022,16.07.2022,GPC06220000178,129.00
Stockport MBC,Services to People,Childrens & Educational Services,PREMIER INN44010600,Care Payments,Social Community Care Supplies & Services  ,07.06.2022,16.07.2022,GPC06220000179,196.00
Stockport MBC,Services to People,Childrens & Educational Services,SEA LIFE MANCHESTER,Care Payments,Social Community Care Supplies & Services  ,07.06.2022,16.07.2022,GPC06220000180,54.75
Stockport MBC,Services to People,Childrens & Educational Services,HOLIDAY INNS,Care Payments,Social Community Care Supplies & Services  ,06.06.2022,16.07.2022,GPC06220000181,184.30
Stockport MBC,Services to People,Childrens & Educational Services,CARTRIDGESHOP.CO.UK,Office Expenses,Stationery    ,06.06.2022,16.07.2022,GPC06220000182,220.29
Stockport MBC,Services to People,Childrens & Educational Services,WF  UK3771624774,Care Payments,Social Community Care Supplies & Services  ,28.06.2022,16.07.2022,GPC06220000183,159.99
Stockport MBC,Services to People,Childrens & Educational Services,1 AND 1 IONOS LTD,Information and Communications Technology,Information Communication Technology  ,27.06.2022,16.07.2022,GPC06220000184,12.00
Stockport MBC,Services to People,Childrens & Educational Services,PREMIER INN44010600,Care Payments,Social Community Care Supplies & Services  ,24.06.2022,16.07.2022,GPC06220000185,553.75
Stockport MBC,Services to People,Childrens & Educational Services,SPAGHETTI AGENCY,Publicity and Promotion,Facilities & Management Services  ,23.06.2022,16.07.2022,GPC06220000186,300.00
Stockport MBC,Services to People,Childrens & Educational Services,PREMIER INN44017325,Care Payments,Social Community Care Supplies & Services  ,22.06.2022,16.07.2022,GPC06220000187,167.50
Stockport MBC,Services to People,Childrens & Educational Services,TRAINLINE.COM,Care Payments,Social Community Care Supplies & Services  ,22.06.2022,16.07.2022,GPC06220000188,133.69
Stockport MBC,Services to People,Childrens & Educational Services,STERLING PROPERTY CO L,Care Payments,Social Community Care Supplies & Services  ,17.06.2022,16.07.2022,GPC06220000189,795.00
Stockport MBC,Services to People,Childrens & Educational Services,CRELLING HARNESSES LTD,Care Payments,Social Community Care Supplies & Services  ,16.06.2022,16.07.2022,GPC06220000190,65.00
Stockport MBC,Services to People,Childrens & Educational Services,STOCKPORT MBC DOM,Care Payments,Social Community Care Supplies & Services  ,16.06.2022,16.07.2022,GPC06220000191,25.96
Stockport MBC,Services to People,Childrens & Educational Services,STOCKPORT MBC DOM,Care Payments,Social Community Care Supplies & Services  ,15.06.2022,16.07.2022,GPC06220000192,361.08
Stockport MBC,Services to People,Childrens & Educational Services,HOTEL AT BOOKING.COM,Care Payments,Social Community Care Supplies & Services  ,13.06.2022,16.07.2022,GPC06220000193,138.20
Stockport MBC,Services to People,Childrens & Educational Services,ZOOM.US 888-799-9666,Information and Communications Technology,Information Communication Technology  ,11.06.2022,16.07.2022,GPC06220000194,11.99
Stockport MBC,Services to People,Childrens & Educational Services,STOCKPORT MBC DOM,Care Payments,Social Community Care Supplies & Services  ,10.06.2022,16.07.2022,GPC06220000195,294.32
Stockport MBC,Services to People,Childrens & Educational Services,TRAVELODGE GB0000,Care Payments,Social Community Care Supplies & Services  ,10.06.2022,16.07.2022,GPC06220000196,447.06
Stockport MBC,Services to People,Childrens & Educational Services,STOCKPORT MBC DOM,Care Payments,Social Community Care Supplies & Services  ,09.06.2022,16.07.2022,GPC06220000197,48.48
Stockport MBC,Services to People,Childrens & Educational Services,ETRMYTRIP_UK_LNGW7O,Care Payments,Social Community Care Supplies & Services  ,08.06.2022,16.07.2022,GPC06220000198,794.49
Stockport MBC,Services to People,Childrens & Educational Services,STOCKPORT MBC DOM,Care Payments,Social Community Care Supplies & Services  ,08.06.2022,16.07.2022,GPC06220000199,90.86
Stockport MBC,Services to People,Childrens & Educational Services,STOCKPORT MBC DOM,Care Payments,Social Community Care Supplies & Services  ,08.06.2022,16.07.2022,GPC06220000200,57.99
Stockport MBC,Corporate and Support Services,Corporate & Democratic Core,THETRAINLINE.COM,Travelling Expenses,Human Resources Travel & Subsistence ,13.06.2022,16.07.2022,GPC06220000201,119.85
Stockport MBC,Services to People,Childrens & Educational Services,AMZNMKTPLACE AMAZON.CO,Library Equipment,Education Library Books ,28.06.2022,16.07.2022,GPC06220000202,62.79
Stockport MBC,Services to People,Childrens & Educational Services,TRAVELODGE GB0000,Expenses and Allowances,Catering  ,27.06.2022,16.07.2022,GPC06220000203,198.83
Stockport MBC,Services to People,Childrens & Educational Services,SP SCHOOL WELLBEING,Library Equipment,Education Library Books ,27.06.2022,16.07.2022,GPC06220000204,25.00
Stockport MBC,Services to People,Childrens & Educational Services,TRAINLINE.COM,Travelling Expenses,Human Resources Travel & Subsistence ,14.06.2022,16.07.2022,GPC06220000205,8.44
Stockport MBC,Services to People,Childrens & Educational Services,MANCHESTER AIRPORT,Care Payments,Social Community Care Supplies & Services  ,30.06.2022,16.07.2022,GPC06220000206,56.00
Stockport MBC,Services to People,Childrens & Educational Services,ETRBOOKING_UK_LOQH3W,Care Payments,Social Community Care Supplies & Services  ,30.06.2022,16.07.2022,GPC06220000207,104.99
Stockport MBC,Services to People,Childrens & Educational Services,GUARANTY TRUST BANK (U,Care Payments,Social Community Care Supplies & Services  ,24.06.2022,16.07.2022,GPC06220000208,43.57
Stockport MBC,Services to People,Childrens & Educational Services,GUARANTY TRUST BANK (U,Care Payments,Social Community Care Supplies & Services  ,24.06.2022,16.07.2022,GPC06220000209,43.57
Stockport MBC,Services to People,Childrens & Educational Services,GUARANTY TRUST BANK (U,Care Payments,Social Community Care Supplies & Services  ,24.06.2022,16.07.2022,GPC06220000210,43.57
Stockport MBC,Services to People,Childrens & Educational Services,GUARANTY TRUST BANK (U,Care Payments,Social Community Care Supplies & Services  ,24.06.2022,16.07.2022,GPC06220000211,43.57
Stockport MBC,Services to People,Childrens & Educational Services,ARGOS LTD,Furniture and Equipment,Environmental Services Technical Equipment ,24.06.2022,16.07.2022,GPC06220000212,391.95
Stockport MBC,Services to People,Childrens & Educational Services,HEALD GREEN PHARMACY,Care Payments,Social Community Care Supplies & Services  ,17.06.2022,16.07.2022,GPC06220000213,280.00
Stockport MBC,Services to People,Childrens & Educational Services,ARGOS LTD,Care Payments,Social Community Care Supplies & Services  ,17.06.2022,16.07.2022,GPC06220000214,15.00
Stockport MBC,Services to People,Childrens & Educational Services,HOTEL AT BOOKING.COM,Care Payments,Social Community Care Supplies & Services  ,08.06.2022,16.07.2022,GPC06220000215,"1,717.86"
Stockport MBC,Services to People,Childrens & Educational Services,HIGHSTREETVOUCHERS,Publicity and Promotion,Arts & Leisure Services  ,01.06.2022,16.07.2022,GPC06220000216,20.00
Stockport MBC,Services to People,Childrens & Educational Services,HIGHSTREETVOUCHERS,Publicity and Promotion,Arts & Leisure Services  ,01.06.2022,16.07.2022,GPC06220000217,20.00
Stockport MBC,Services to People,Childrens & Educational Services,HIGHSTREETVOUCHERS,Publicity and Promotion,Arts & Leisure Services  ,01.06.2022,16.07.2022,GPC06220000218,20.00
Stockport MBC,Services to People,Childrens & Educational Services,ASDA GROCERIES ONLINE,Furniture and Equipment,Environmental Services Technical Equipment ,28.06.2022,16.07.2022,GPC06220000219,6.00
Stockport MBC,Services to People,Childrens & Educational Services,ASDA GROCERIES ONLINE,Catering Supplies,Catering Food & Beverages ,27.06.2022,16.07.2022,GPC06220000220,61.30
Stockport MBC,Services to People,Childrens & Educational Services,ALDI 40 773,Furniture and Equipment,Environmental Services Technical Equipment ,23.06.2022,16.07.2022,GPC06220000221,5.70
Stockport MBC,Services to People,Childrens & Educational Services,ASDA GROCERIES ONLINE,Furniture and Equipment,Environmental Services Technical Equipment ,20.06.2022,16.07.2022,GPC06220000222,41.44
Stockport MBC,Services to People,Childrens & Educational Services,W M MORRISON STORE,Catering Supplies,Catering Food & Beverages ,13.06.2022,16.07.2022,GPC06220000223,31.18
Stockport MBC,Services to People,Childrens & Educational Services,ASDA GROCERIES ONLINE,Catering Supplies,Catering Food & Beverages ,06.06.2022,16.07.2022,GPC06220000224,41.10
Stockport MBC,Services to People,Childrens & Educational Services,NETFLIX.COM,Fees and Charges,Financial Services  ,10.06.2022,16.07.2022,GPC06220000225,15.99
Stockport MBC,Services to People,Childrens & Educational Services,DISNEY PLUS,Fees and Charges,Financial Services  ,03.06.2022,16.07.2022,GPC06220000226,7.99
Stockport MBC,Services to People,Childrens & Educational Services,SP ARENA FLOWERS,Furniture and Equipment,Furniture & Soft Furnishings  ,21.06.2022,16.07.2022,GPC06220000227,26.00
Stockport MBC,Services to People,Childrens & Educational Services,AMZNMKTPLACE AMAZON.CO,Furniture and Equipment,Environmental Services Technical Equipment ,14.06.2022,16.07.2022,GPC06220000228,101.36
Stockport MBC,Services to People,Childrens & Educational Services,AMZNMKTPLACE AMAZON.CO,Furniture and Equipment,Environmental Services Technical Equipment ,14.06.2022,16.07.2022,GPC06220000229,91.91
Stockport MBC,Services to People,Childrens & Educational Services,AMZNMKTPLACE,Furniture and Equipment,Environmental Services Technical Equipment ,14.06.2022,16.07.2022,GPC06220000230,59.34
Stockport MBC,Services to People,Childrens & Educational Services,AMAZON.CO.UK 2C7F70DQ4,Furniture and Equipment,Environmental Services Technical Equipment ,14.06.2022,16.07.2022,GPC06220000231,28.84
Stockport MBC,Services to People,Childrens & Educational Services,AMZNMKTPLACE AMAZON.CO,Furniture and Equipment,Environmental Services Technical Equipment ,13.06.2022,16.07.2022,GPC06220000232,87.16
Stockport MBC,Services to People,Childrens & Educational Services,AMZNMKTPLACE,Furniture and Equipment,Environmental Services Technical Equipment ,14.06.2022,16.07.2022,GPC06220000233,93.92
Stockport MBC,Services to People,Childrens & Educational Services,WWW.CROSSBOWEDUCATION.,Furniture and Equipment,Environmental Services Technical Equipment ,13.06.2022,16.07.2022,GPC06220000234,34.48
Stockport MBC,Services to People,Childrens & Educational Services,AMZNMKTPLACE AMAZON.CO,Furniture and Equipment,Environmental Services Technical Equipment ,09.06.2022,16.07.2022,GPC06220000235,47.99
Stockport MBC,Services to People,Childrens & Educational Services,AMAZON.CO.UK 2C4MZ7ES4,Furniture and Equipment,Environmental Services Technical Equipment ,09.06.2022,16.07.2022,GPC06220000236,6.99
Stockport MBC,Services to People,Childrens & Educational Services,SMC COACH HIRE LTD,Leasing /Transport Hire,Vehicle Management Leasing ,06.06.2022,16.07.2022,GPC06220000237,425.00
Stockport MBC,Services to People,Childrens & Educational Services,AMAZON PRIME 2G23I8IV4,Furniture and Equipment,Environmental Services Technical Equipment ,06.06.2022,16.07.2022,GPC06220000238,7.99
Stockport MBC,Services to People,Public Health,VERNON CAFE,Office Expenses,Stationery    ,20.06.2022,16.07.2022,GPC06220000239,2.40
Stockport MBC,Services to People,Public Health,VERNON CAFE,Office Expenses,Stationery    ,20.06.2022,16.07.2022,GPC06220000240,1.50
Stockport MBC,Services to People,Public Health,VERNON CAFE,Office Expenses,Stationery    ,20.06.2022,16.07.2022,GPC06220000241,4.80
Stockport MBC,Services to People,Adult Social Care,ALDI 84 773,Catering Supplies,Catering Food & Beverages ,23.06.2022,16.07.2022,GPC06220000242,43.20
Stockport MBC,Services to People,Adult Social Care,ALDI 84 773,Catering Supplies,Catering Food & Beverages ,14.06.2022,16.07.2022,GPC06220000243,23.54
Stockport MBC,Corporate and Support Services,Cultural & Related Services,SAINSBURY'S S/MKT,Catering Supplies,Catering Food & Beverages ,15.06.2022,16.07.2022,GPC06220000244,2.01
Stockport MBC,Corporate and Support Services,Cultural & Related Services,WWW.ASDA-PHOTO.CO.UK,Office Expenses,Facilities & Management Services  ,14.06.2022,16.07.2022,GPC06220000245,5.81
Stockport MBC,Corporate and Support Services,Cultural & Related Services,SAINSBURY'S S/MKT,Catering Supplies,Catering Food & Beverages ,01.06.2022,16.07.2022,GPC06220000246,5.22
Stockport MBC,Services to People,Childrens & Educational Services,WM MORRISONS STORE,Catering Supplies,Catering Food & Beverages ,29.06.2022,16.07.2022,GPC06220000247,7.78
Stockport MBC,Services to People,Childrens & Educational Services,WM MORRISONS STORE,Catering Supplies,Catering Food & Beverages ,28.06.2022,16.07.2022,GPC06220000248,12.75
Stockport MBC,Services to People,Childrens & Educational Services,B&Q LTD,Furniture and Equipment,Environmental Services Technical Equipment ,28.06.2022,16.07.2022,GPC06220000249,11.00
Stockport MBC,Services to People,Childrens & Educational Services,WM MORRISONS STORE,Catering Supplies,Catering Food & Beverages ,27.06.2022,16.07.2022,GPC06220000250,37.26
Stockport MBC,Services to People,Childrens & Educational Services,WM MORRISONS STORE,Catering Supplies,Catering Food & Beverages ,24.06.2022,16.07.2022,GPC06220000251,15.65
Stockport MBC,Services to People,Childrens & Educational Services,WM MORRISONS STORE,Catering Supplies,Catering Food & Beverages ,23.06.2022,16.07.2022,GPC06220000252,11.83
Stockport MBC,Services to People,Childrens & Educational Services,B & Q 1279,Furniture and Equipment,Environmental Services Technical Equipment ,23.06.2022,16.07.2022,GPC06220000253,76.32
Stockport MBC,Services to People,Childrens & Educational Services,WM MORRISONS STORE,Catering Supplies,Catering Food & Beverages ,22.06.2022,16.07.2022,GPC06220000254,17.30
Stockport MBC,Services to People,Childrens & Educational Services,WM MORRISONS STORE,Catering Supplies,Catering Food & Beverages ,21.06.2022,16.07.2022,GPC06220000255,14.93
Stockport MBC,Services to People,Childrens & Educational Services,TRAINLINE.COM,Travelling Expenses,Human Resources Travel & Subsistence ,23.06.2022,16.07.2022,GPC06220000256,15.71
Stockport MBC,Services to People,Childrens & Educational Services,THETRAINLINE.COM,Travelling Expenses,Human Resources Travel & Subsistence ,23.06.2022,16.07.2022,GPC06220000257,47.35
Stockport MBC,Services to People,Childrens & Educational Services,THETRAINLINE.COM,Travelling Expenses,Human Resources Travel & Subsistence ,23.06.2022,16.07.2022,GPC06220000258,10.88
Stockport MBC,Corporate and Support Services,Central Support Costs,THE LIGHT CINEMAS,Publicity and Promotion,Arts & Leisure Services  ,16.06.2022,16.07.2022,GPC06220000259,102.45
Stockport MBC,Services to People,Childrens & Educational Services,PAYPAL  INCENTIVEPL,Fees and Charges,Human Resources Training & Conferences ,16.06.2022,16.07.2022,GPC06220000260,42.95
Stockport MBC,Services to People,Childrens & Educational Services,MINUTEMAN PRESS,Expenses and Allowances,Catering  ,10.06.2022,16.07.2022,GPC06220000261,80.00
Stockport MBC,Services to People,Childrens & Educational Services,PAYPAL  ELSASUPPORT,Library Equipment,Education Library Books ,10.06.2022,16.07.2022,GPC06220000262,67.50
Stockport MBC,Corporate and Support Services,Corporate & Democratic Core,TRAINLINE.COM,Travelling Expenses,Human Resources Travel & Subsistence ,09.06.2022,16.07.2022,GPC06220000263,85.56
Stockport MBC,Corporate and Support Services,Corporate & Democratic Core,THETRAINLINE.COM,Travelling Expenses,Human Resources Travel & Subsistence ,09.06.2022,16.07.2022,GPC06220000264,242.05
Stockport MBC,Services to People,Childrens & Educational Services,ASDA SUPERSTORE,Catering Supplies,Catering Food & Beverages ,22.06.2022,16.07.2022,GPC06220000265,12.27
Stockport MBC,Services to People,Childrens & Educational Services,SAINSBURY'S S/MKTS,Catering Supplies,Catering Food & Beverages ,01.06.2022,16.07.2022,GPC06220000266,5.00
Stockport MBC,Corporate and Support Services,Cultural & Related Services,SAINSBURY'S S/MKTS,Expenses and Allowances,Catering  ,29.06.2022,16.07.2022,GPC06220000267,4.50
Stockport MBC,Corporate and Support Services,Cultural & Related Services,SAINSBURY'S S/MKTS,Expenses and Allowances,Catering  ,28.06.2022,16.07.2022,GPC06220000268,1.50
Stockport MBC,Corporate and Support Services,Cultural & Related Services,AMZNMKTPLACE,Repairs and Maintenance,"Works - Construction, Repair & Maintenance  ",28.06.2022,16.07.2022,GPC06220000269,4.79
Stockport MBC,Corporate and Support Services,Cultural & Related Services,SAINSBURY'S S/MKT,Expenses and Allowances,Catering  ,05.06.2022,16.07.2022,GPC06220000270,3.20
Stockport MBC,Services to Place,Highways & Transport Services,DVLA VEHICLE TAX,Vehicle Excise Duty,Vehicle Management  ,23.06.2022,16.07.2022,GPC06220000271,292.50
Stockport MBC,Corporate and Support Services,Central Support Costs,EB  CAMP DIGITAL 2022,Staff Training,Human Resources  ,15.06.2022,16.07.2022,GPC06220000272,263.44
Stockport MBC,Services to Place,Highways & Transport Services,WWW.PLANNING.CO,Fees and Charges,"Works - Construction, Repair & Maintenance Buildings Surveys",14.06.2022,16.07.2022,GPC06220000273,148.20
Stockport MBC,Services to People,Childrens & Educational Services,PRESTIG EFLOWERS,Furniture and Equipment,Environmental Services Technical Equipment ,23.06.2022,16.07.2022,GPC06220000274,36.48
Stockport MBC,Services to People,Childrens & Educational Services,ASDA GROCERIES ONLINE,Furniture and Equipment,Environmental Services Technical Equipment ,23.06.2022,16.07.2022,GPC06220000275,40.30
Stockport MBC,Corporate and Support Services,Cultural & Related Services,SAINSBURY'S S/MKT,Catering Supplies,Catering Food & Beverages ,20.06.2022,16.07.2022,GPC06220000276,20.73
Stockport MBC,Corporate and Support Services,Cultural & Related Services,H.G. STEPHENSON LTD,Furniture and Equipment,Environmental Services Technical Equipment ,20.06.2022,16.07.2022,GPC06220000277,49.62
Stockport MBC,Corporate and Support Services,Cultural & Related Services,SAINSBURY'S S/MKTS,Catering Supplies,Catering Food & Beverages ,10.06.2022,16.07.2022,GPC06220000278,18.60
Stockport MBC,Corporate and Support Services,Central Support Costs,FASTHOSTS,Information and Communications Technology,Information Communication Technology  ,29.06.2022,16.07.2022,GPC06220000279,12.59
Stockport MBC,Corporate and Support Services,Central Support Costs,SCREENCONNECT SOFTWARE,Information and Communications Technology,Information Communication Technology  ,29.06.2022,16.07.2022,GPC06220000280,"1,267.33"
Stockport MBC,Corporate and Support Services,Central Support Costs,"INVISIONAPP, INC",Information and Communications Technology,Information Communication Technology  ,28.06.2022,16.07.2022,GPC06220000281,222.12
Stockport MBC,Corporate and Support Services,Central Support Costs,FASTHOSTS,Information and Communications Technology,Information Communication Technology  ,27.06.2022,16.07.2022,GPC06220000282,27.59
Stockport MBC,Corporate and Support Services,Central Support Costs,MIRO.COM,Information and Communications Technology,Information Communication Technology  ,24.06.2022,16.07.2022,GPC06220000283,270.73
Stockport MBC,Corporate and Support Services,Central Support Costs,EBAY O 27-08774-57199,Information and Communications Technology,Information Communication Technology  ,22.06.2022,16.07.2022,GPC06220000284,174.95
Stockport MBC,Corporate and Support Services,Central Support Costs,CURRYS ONLINE,Information and Communications Technology,Information Communication Technology  ,17.06.2022,16.07.2022,GPC06220000285,379.98
Stockport MBC,Corporate and Support Services,Central Support Costs,GITHUB,Information and Communications Technology,Information Communication Technology  ,14.06.2022,16.07.2022,GPC06220000286,84.92
Stockport MBC,Corporate and Support Services,Central Support Costs,EBAY O 13-08748-81222,Information and Communications Technology,Information Communication Technology  ,14.06.2022,16.07.2022,GPC06220000287,267.00
Stockport MBC,Corporate and Support Services,Central Support Costs,AUTH0.COM,Information and Communications Technology,Information Communication Technology  ,13.06.2022,16.07.2022,GPC06220000288,10.04
Stockport MBC,Corporate and Support Services,Central Support Costs,WWW.CONTENTFUL.COM,Information and Communications Technology,Information Communication Technology  ,13.06.2022,16.07.2022,GPC06220000289,602.07
Stockport MBC,Corporate and Support Services,Central Support Costs,FASTHOSTS,Information and Communications Technology,Information Communication Technology  ,10.06.2022,16.07.2022,GPC06220000290,39.47
Stockport MBC,Corporate and Support Services,Central Support Costs,FASTHOSTS,Information and Communications Technology,Information Communication Technology  ,07.06.2022,16.07.2022,GPC06220000291,6.34
Stockport MBC,Corporate and Support Services,Central Support Costs,ATLASSIAN,Information and Communications Technology,Information Communication Technology  ,08.06.2022,16.07.2022,GPC06220000292,603.79
Stockport MBC,Corporate and Support Services,Central Support Costs,AUTH0.COM,Information and Communications Technology,Information Communication Technology  ,05.06.2022,16.07.2022,GPC06220000293,164.87
Stockport MBC,Corporate and Support Services,Central Support Costs,AWS EMEA,Information and Communications Technology,Information Communication Technology  ,03.06.2022,16.07.2022,GPC06220000294,"1,311.06"
